Cogmind - Beta 14 @@@ ROGUE MODE // 2024.10.21 @ 08:26:32 Player: Tereza Result: Destroyed by Y-45 Defender with Heavy Assault Rifle Performance ------------- Evolutions (2) 1000 Regions Visited (4) 800 Robots Destroyed (50) 250 Value Destroyed (1591) 1591 Prototype IDs (1) 20 Alien Tech Used (0) 0 Bonus (-12) -12 TOTAL SCORE: 3649 Bonus ------- Friendly Fire -12 Cogmind --------- Core Integrity 0/550 Matter 185/300 Energy 100/100 System Corruption 0% Temperature Cool (9) Movement Core (200) Ox3 Location -8/Materials Parts ------- > --- POWER (1) -------- (None) > --- PROPULSION (2) --- (None) > --- UTILITY (6) ------ Medium Storage Unit Transport Network Coupler Graphene Brace Hacking Suite > --- WEAPON (2) ------- (None) > --- INVENTORY (10) --- Improved Ion Engine Light Treads Armored Treads Aluminum Leg Aluminum Leg Improved Heat Sink Structural Scanner Improved Terrain Scanner System Shield Peak State ------------ > --- POWER ------------ Light Nuclear Core > --- PROPULSION ------- Aluminum Leg Carbon-fiber Leg > --- UTILITY ---------- Medium Storage Unit Transport Network Coupler Utility Shielding Improved Light Armor Plating Graphene Brace Hacking Suite > --- WEAPON ----------- Heavy Assault Rifle Minigun > --- INVENTORY -------- Ion Engine Improved Ion Engine Light Treads Aluminum Leg Aluminum Leg Improved Heat Sink Structural Scanner Improved Terrain Scanner System Shield Grenade Launcher [Rating: 29] Favorites ----------- Power Light Nuclear Core Engine Improved Ion Engine Power Core Light Nuclear Core Propulsion Light Treads Treads Light Treads Leg Aluminum Leg Utility Utility Shielding Device Improved Heat Sink Storage Small Storage Unit Processor Transport Network Coupler Hackware Hacking Suite Protection Utility Shielding Weapon Improved Assault Rifle Energy Gun Particle Gun Ballistic Gun Improved Assault Rifle Ballistic Cannon Light Cannon Launcher Grenade Launcher Build | -11 -10 -10 -9 -8 ------- Run | Yrd Mat Min Mat Mat Slots Evolved 4 | . . . 2 2 Power . | . . . . . Propulsion . | . . . . . Utility 4 | . . . 2 2 Weapon . | . . . . . Parts Attached 46 | 6 3 6 11 20 Power 6 | 1 1 . 2 2 Engine 3 | 1 . . 2 . Core 3 | . 1 . . 2 Reactor . | . . . . . Propulsion 13 | 2 . 2 1 8 Treads 8 | 2 . 2 1 3 Leg 5 | . . . . 5 Wheel . | . . . . . Hover . | . . . . . Flight . | . . . . . Utility 12 | 1 1 1 4 5 Device 2 | . 1 . . 1 Storage 3 | 1 . . 1 1 Processor 1 | . . . 1 . Hackware 1 | . . . 1 . Protection 5 | . . 1 1 3 Artifact . | . . . . . Weapon 15 | 2 1 3 4 5 Energy Gun 4 | . 1 2 . 1 Energy Cannon . | . . . . . Ballistic Gun 9 | 2 . . 4 3 Ballistic Cannon 1 | . . 1 . . Launcher 1 | . . . . 1 Special Weapon . | . . . . . Impact Weapon . | . . . . . Slashing Weapon . | . . . . . Piercing Weapon . | . . . . . Special Melee Weapon . | . . . . . Unidentified Prototypes 1 | . . . 1 . Parts Lost 21 | . . . 2 19 Power 3 | . . . 1 2 Propulsion 7 | . . . . 7 Utility 5 | . . . 1 4 Weapon 6 | . . . . 6 Highest Loss Streak 8 | . . . 2 8 To Critical Strikes . | . . . . . Average Slot Usage (%) 94 | . 91 100 94 91 Engine 3 | . 7 . 5 4 Core 8 | . 6 14 5 4 Treads 20 | . 28 28 22 9 Leg 2 | . . . . 7 Device 4 | . 5 8 . 2 Storage 11 | . 14 14 11 9 Processor 3 | . . . 2 9 Hackware 4 | . . . 11 9 Protection 10 | . . 5 14 18 Energy Gun 7 | . 6 14 5 . Ballistic Gun 13 | . 21 8 9 16 Ballistic Cannon 2 | . . 5 6 . Peak Build Rating 29 | 6 13 13 17 29 Average Rating 15 | 4 9 12 14 22 On Entrance 9 | . 6 13 11 17 Naked Turns . | . . . . . Heaviest Build 30 | 13 15 17 25 30 Greatest Support 40 | 40 40 40 40 40 Greatest Overweight (x) 4 | . . . . 4 Average Overweight (x) . | . . . . . Largest Inventory Capacity 10 | 8 8 8 10 10 Average Capacity 8 | 6 8 8 9 10 Most Carried 10 | 6 8 8 10 10 Average Carried 8 | 4 7 7 8 9 Final Capacity 10 | 8 8 8 10 10 Final Carried 10 | 6 8 8 10 9 Class Distribution -------------------- 63% | Scavenger-Mutant 36% | Mutant Dominant Class ---------------- Mutant | -10/Materials Mutant | -10/Mines Scavenger-Mutant | -9/Materials Scavenger-Mutant | -8/Materials Resources | -11 -10 -10 -9 -8 ----------- Run | Yrd Mat Min Mat Mat Matter Collected 1379 | 230 129 69 263 688 Remotely . | . . . . . Salvage Created 1832 | . 251 82 396 1103 Parts 113 | . 22 6 18 67 Haulers Intercepted 2 | . . . 1 1 Recyclers Shooed 1 | . . . . 1 Parts Field Recycled . | . . . . . Retrieved Matter . | . . . . . Parts Self-Destructed . | . . . . . Prevented . | . . . . . Kills | -11 -10 -10 -9 -8 ------- Run | Yrd Mat Min Mat Mat Combat Hostiles Destroyed 38 | . 5 2 8 23 Guns 32 | . 5 2 4 21 Cannons 4 | . . . 4 . AOE 2 | . . . . 2 Classes Destroyed 14 | . 3 1 4 6 Worker 1 | . . 1 . . Builder 2 | . . . . 2 Tunneler 2 | . . . . 2 Hauler 2 | . . . 1 1 Recycler 1 | . . . 1 . Mechanic 1 | . . . . 1 Operator 2 | . 1 . 1 . Watcher 1 | . 1 . . . Swarmer 7 | . . . 3 4 Grunt 22 | . 5 2 1 14 Duelist 1 | . . . . 1 Sentry 6 | . . . 4 2 Hunter 1 | . . . . 1 Heavy 1 | . . . . 1 Best Kill Streak 7 | . 3 1 6 7 Combat Bots Only 4 | . 3 1 4 4 Max Kills in Single Turn 3 | . 1 1 2 3 Gunslinging . | . . . . . Exploded 1 | . . . . 1 Melee . | . . . . . Uniques/NPCs Destroyed . | . . . . . Combat | -11 -10 -10 -9 -8 -------- Run | Yrd Mat Min Mat Mat Hostile Shots Fired 325 | . 34 9 61 221 Missed 68 | . 12 1 13 42 Damage Taken 3801 | . 307 123 617 2754 Core 748 | . 73 45 71 559 Absorbed by Shields . | . . . . . Redirected to Shielding 51 | . . . 14 37 Core Remaining (%) 78 | 100 . 52 82 . Volleys Fired 181 | . 33 8 24 116 Largest 2 | . 2 2 2 2 Hottest 91 | . 85 85 91 88 Shots Fired 347 | . 66 16 47 218 Gun 327 | . 66 16 30 215 Cannon 17 | . . . 17 . Launcher 3 | . . . . 3 Special . | . . . . . Kinetic 308 | . 63 8 37 200 Thermal 36 | . 3 8 10 15 Explosive 3 | . . . . 3 Electromagnetic . | . . . . . Robot Hit Streak 26 | . 10 5 13 26 Robot Miss Streak 5 | . 3 3 1 5 Penetration Max . | . . . . . Secondary Targets 2 | . . . . 2 Max Gunslinging Chain 1 | . . . . 1 Shots Hit Robots 245 | . 42 8 36 159 Core Hits 102 | . 17 6 14 65 Critical Kills . | . . . . . Critical Parts Destroyed 1 | . . . . 1 Critical Strikes 3 | . . 1 1 1 Burn 1 | . . 1 . . Destroy 1 | . . . . 1 Blast 1 | . . . 1 . Melee Attacks . | . . . . . Impact . | . . . . . Slashing . | . . . . . Piercing . | . . . . . Sneak Attacks . | . . . . . Combat Hostiles . | . . . . . Follow-up Attacks . | . . . . . Damage Inflicted 4045 | . 412 121 601 2911 Guns 3237 | . 412 121 339 2365 Cannons 262 | . . . 262 . Explosions 546 | . . . . 546 Melee . | . . . . . Ramming . | . . . . . Kinetic 3098 | . 381 30 500 2187 Thermal 401 | . 31 91 101 178 Explosive 546 | . . . . 546 Electromagnetic . | . . . . . Impact . | . . . . . Slashing . | . . . . . Piercing . | . . . . . Highest Corruption 4 | . . . 4 . Average Corruption 4 | . . . 4 . Corruption Purged . | . . . . . Corruption Blocked . | . . . . . Effects 5 | . . . 5 . Message Errors 1 | . . . 1 . Matter Fused 1 | . . . 1 . Energy Discharges 1 | . . . 1 . Data Loss (minor) 1 | . . . 1 . Weapon Failures 1 | . . . 1 . Overload Shots . | . . . . . Overflow Damage 2 | . . . . 2 Projectiles . | . . . . . Explosions 2 | . . . . 2 Melee . | . . . . . Knockbacks . | . . . . . Impact . | . . . . . Kinetic . | . . . . . Secondary . | . . . . . Self-Inflicted Damage 138 | . . . . 138 Shots 3 | . . . . 3 Rammed . | . . . . . Targets Rammed . | . . . . . Kicked . | . . . . . Crushed . | . . . . . Highest Temperature 272 | . 49 58 272 118 Average Temperature 52 | . 13 26 157 24 Received Heat Transfer 1410 | . 189 63 195 963 Siege Activations . | . . . . . Robots Corrupted . | . . . . . Combat Hostiles . | . . . . . Parts Fried . | . . . . . Impact Corruptions . | . . . . . Robots Melted . | . . . . . Combat Hostiles . | . . . . . Parts Melted 1 | . . 1 . . Heat Transferred 1036 | . 74 296 259 407 Parts Sabotaged . | . . . . . Parts Stolen . | . . . . . Parts Stripped . | . . . . . Power Chain Reactions . | . . . . . Alert | -11 -10 -10 -9 -8 ------- Run | Yrd Mat Min Mat Mat Peak Influence 285 | . 187 85 277 285 Initial 72 | . . 72 . 32 Average 106 | . 104 62 106 164 Maximum Alert Level 1 | . . . 1 1 Low Security (%) 85 | 100 100 100 85 62 Level 1 14 | . . . 14 37 Level 2 . | . . . . . Level 3 . | . . . . . Level 4 . | . . . . . Level 5 . | . . . . . High Security . | . . . . . Max Security . | . . . . . Squads Dispatched 4 | . 1 . . 3 Investigation . | . . . . . Extermination . | . . . . . Reinforcement 3 | . 1 . . 2 Assault . | . . . . . Garrison 1 | . . . . 1 Intercept . | . . . . . Searches Triggered . | . . . . . Construction Impeded . | . . . . . Haulers Reinforced . | . . . . . Active Scanning Responses . | . . . . . Cargo Convoy Interrupts . | . . . . . Stealth | -11 -10 -10 -9 -8 --------- Run | Yrd Mat Min Mat Mat Distress Signals 6 | . 2 . 1 3 Communications Jammed . | . . . . . Distress Signals . | . . . . . Times Spotted 67 | . 11 3 12 41 Peak Tracking Total 7 | . 5 2 5 7 Tactical Retreats 5 | . . . 1 4 Traps | -11 -10 -10 -9 -8 ------- Run | Yrd Mat Min Mat Mat Traps Triggered . | . . . . . Indirectly . | . . . . . Trap Hack Attempts . | . . . . . Triggered . | . . . . . Disarmed . | . . . . . Reprogrammed . | . . . . . Reused . | . . . . . Traps Extracted . | . . . . . Installed . | . . . . . Triggered . | . . . . . Machines | -11 -10 -10 -9 -8 ---------- Run | Yrd Mat Min Mat Mat Machines Disabled 3 | . . 1 . 2 Max in Single Turn 2 | . . 1 . 2 Machines Repaired . | . . . . . Machines Dismantled . | . . . . . Machines Sabotaged . | . . . . . Overloaded Fab Kills . | . . . . . Hacking | -11 -10 -10 -9 -8 --------- Run | Yrd Mat Min Mat Mat Machines Accessed 5 | . 1 1 1 2 Terminals 5 | . 1 1 1 2 Fabricators . | . . . . . Repair Stations . | . . . . . Recycling Units . | . . . . . Scanalyzers . | . . . . . Garrison Access . | . . . . . Total Hacks 9 | . 1 1 2 5 Successful 6 | . 1 1 1 3 Failed 3 | . . . 1 2 Catastrophic . | . . . . . Database Lockouts . | . . . . . Manual 9 | . 1 1 2 5 Terminals 9 | . 1 1 2 5 Fabricators . | . . . . . Repair Stations . | . . . . . Recycling Units . | . . . . . Scanalyzers . | . . . . . Garrison Access . | . . . . . Terminal Hacks 1 | . . . . 1 Unreport Threat 1 | . . . . 1 Fabricator Hacks . | . . . . . Repair Station Hacks . | . . . . . Recycling Unit Hacks . | . . . . . Scanalyzer . | . . . . . Garrison Access Hacks . | . . . . . Unauthorized Hacks 5 | . 1 1 1 2 Terminals 5 | . 1 1 1 2 Track 3 | . . 1 1 1 Botnet 2 | . 1 . . 1 Fabricators . | . . . . . Repair Stations . | . . . . . Recycling Units . | . . . . . Scanalyzers . | . . . . . Garrison Access . | . . . . . Data Cores Recovered 1 | . . . 1 . Used . | . . . . . Hacking Detections 4 | . 1 . 1 2 Full Trace Events . | . . . . . Feedback Events . | . . . . . Feedback Blocked . | . . . . . Robot Schematics Acquired . | . . . . . Robots Built . | . . . . . Authchips . | . . . . . Time . | . . . . . Total Robot Build Rating . | . . . . . Part Schematics Acquired . | . . . . . Parts Built . | . . . . . Authchips . | . . . . . Time . | . . . . . Total Part Build Rating . | . . . . . Parts Repaired . | . . . . . Time . | . . . . . Parts Recycled . | . . . . . Recycled Matter . | . . . . . Retrieved Matter . | . . . . . Retrieved Components . | . . . . . Parts Scanalyzed . | . . . . . Part Schematics Acquired . | . . . . . Parts Damaged . | . . . . . Bothacking | -11 -10 -10 -9 -8 ------------ Run | Yrd Mat Min Mat Mat Used RIF Installer . | . . . . . Robots Hacked . | . . . . . Non-combat . | . . . . . Combat . | . . . . . Robot Hacks Applied . | . . . . . Relay Couplers Released . | . . . . . Fabnet Peak Effective % . | . . . . . Robots Rewired . | . . . . . Allies Hacked . | . . . . . Hacks Repelled . | . . . . . Allies | -11 -10 -10 -9 -8 -------- Run | Yrd Mat Min Mat Mat Total Allies . | . . . . . Largest Group . | . . . . . Highest-Rated Group . | . . . . . Highest-Rated Ally . | . . . . . Total Orders . | . . . . . Ally Attacks . | . . . . . Total Damage . | . . . . . Kills . | . . . . . Allies Corrupted . | . . . . . Allies Melted . | . . . . . Intel | -11 -10 -10 -9 -8 ------- Run | Yrd Mat Min Mat Mat Robot Analysis Total . | . . . . . Derelict Logs Recovered 2 | . . 2 . . Drone Launches . | . . . . . Drone Recoveries . | . . . . . Exploration | -11 -10 -10 -9 -8 ------------- Run | Yrd Mat Min Mat Mat Turns Passed 2585 | 75 334 907 416 853 Spaces Moved 1094 | 46 141 447 193 267 Core 16 | 11 . . . 5 Treads 971 | 35 141 447 193 155 Legs 107 | . . . . 107 Wheels . | . . . . . Hover . | . . . . . Flight . | . . . . . Fastest Speed 50 | 50 160 160 160 120 Average Speed 162 | 133 160 160 160 174 Slowest Speed 260 | 160 160 160 160 260 Overloaded Moves . | . . . . . Propulsion Burnouts . | . . . . . Robots Hopped . | . . . . . Cave-ins Triggered . | . . . . . Exploration Rate (%) 31 | 3 28 78 21 29 Regions Visited 4 Branch Regions 1 Pre-discovered Areas 1 | . . 1 . . Known Exits Taken . | . . . . . Unknown Exits Taken 4 | 1 1 1 1 . Scrap Searched 3 | . . 3 . . Spaces Dug . | . . . . . Terrain Destroyed 52 | . . . . 52 Melee . | . . . . . Projectile . | . . . . . AOE 52 | . . . . 52 Terrain Rammed . | . . . . . Walls Destroyed . | . . . . . Machines Disabled . | . . . . . Actions | -11 -10 -10 -9 -8 --------- Run | Yrd Mat Min Mat Mat Total 1588 | 57 192 629 258 452 Wait 196 | . 6 157 15 18 Move 1090 | 45 140 446 192 267 Hop . | . . . . . Pick Up 36 | 6 5 3 6 16 Fast Attach 22 | 6 2 2 4 8 Attach 10 | . . . 2 8 Detach 2 | . . . 2 . Swap 14 | . 1 4 5 4 Drop 37 | . 5 9 8 15 Fire 181 | . 33 8 24 116 Melee . | . . . . . Ram . | . . . . . Kick . | . . . . . Crush . | . . . . . Escape Stasis . | . . . . . Rewire . | . . . . . Trap . | . . . . . Miscellaneous . | . . . . . Route ------- -11/Scrapyard -10/Materials -10/Mines (discovered 3 exits: *Mat x2 / Sub) -9/Materials -8/Materials History --------- Turn | Location | Event 11 | -11/Scrapyard | Discovered new exit (range 16) 76 | -11/Scrapyard | Entered Materials 317 | -10/Materials | Build established: Mutant 357 | -10/Materials | Discovered new exit (range 16) 410 | -10/Materials | Entered Mines 471 | -10/Mines | Learned Materials security intel 941 | -10/Mines | Joined a pair of Derelicts in attacking an 0b10 outpost 1035 | -10/Mines | Identified exit to Subcaves 1141 | -10/Mines | Learned location of Storage (-8) 1254 | -10/Mines | Build established: Scavenger-Mutant 1262 | -10/Mines | Discovered new exit (range 4) 1282 | -10/Mines | Discovered new exit (range 10) 1317 | -10/Mines | Entered Materials 1317 | -9/Materials | Evolved 2 slots: Utility x2 1695 | -9/Materials | Discovered new exit (range 16) 1733 | -9/Materials | Entered another Materials area 1733 | -8/Materials | Evolved 2 slots: Utility x2 2185 | -8/Materials | Core integrity fell below 50% 2203 | -8/Materials | Lost 5 parts (1p2n2w) 2573 | -8/Materials | Garrison activated, responded to threat 2575 | -8/Materials | Core integrity fell below 20% 2586 | -8/Materials | Destroyed by Y-45 Defender with Heavy Assault Rifle Last Messages --------------- 02573_ ALERT: Activating Garrison Access M001. 02573_ Aluminum Leg destroyed. 02573_ Destroyed Aluminum Leg. 02574_ Nuclear Reactor explodes. 02574_ U-05 Engineer destroyed. 02574_ Nuclear Reactor explodes. 02574_ G-50 Soldier destroyed. 02574_ M-13 Machinist destroyed. 02577_ K-01 Serf collects debris. 02577_ T-07 Excavator destroyed. 02578_ The unstable cave ceiling collapses. 02579_ Grenade Launcher destroyed. 02579_ U-05 Engineer lays Concrete. 02580_ Y-45 Defender destroyed. 02580_ U-05 Engineer lays Concrete. 02581_ K-01 Serf collects debris. 02582_ U-05 Engineer lays Concrete. 02584_ K-01 Serf collects debris. 02585_ The unstable cave ceiling collapses. 02586_ U-05 Engineer builds a Door. Map ----- +----------------------------------------------------+ | ?????????????????????????????????????????????????? | | ?????????????????????????????????????????????????? | | ?????????????????????????????????????????????????? | | ????????????????????????a????????????????????????? | | ?????????????????????????????????????????????????? | | ?????????????????????????????????????????????????? | | ?????????????????????????????????????????????????? | | ?????????????????????????????????????????????????? | | ?????????????????????????????????????????????????? | | ?????????????????????????????????????????????????? | | ????????????????????????? ?????????????????????? | | ????????????????????????? ?????????????????????? | | ????????????????????????# ??? ?????????????????? | | ????????????????????????# Y ?? ???????? ???????? | | ????????????????????????#= " "w????????" ???????? | | ????????????????????#####%="G" ??????""" #??????? | | ????????????????????? |%!" ??????? #??????? | | ?????????????????????? [%= ???????? +??????? | | ?????????????????????? ! ?????????/ #??????? | | ??????????????????????? ?????????# #??????? | | ???????????????????????? ##????????# #??????? | | ????????????????????????# #######??# #??????? | | ?????????????########+### # #### #??????? | | ?????????????#!! # # #??????? | | ?????????????#!! = # #??????? | | ?????????????#]] @ * g # ##?????? | | ?????????????#]] ###+##### ####### | | ?????????????????????????# | | ?????????????????????????/a# + T | | ?????????????????????????# # u a | | ?????????????????????????# ## ###/### | | ?????????????????????????# ## ##### | | ?????????????????????????# ## k #???# | | ?????????????????????????# ### # #???# """ | | ?????????????????????????? ???## # ###???# "R | | ?????????????????????????? ?????# ####?????# """ | | ?????????????????????????? ?????# #????????# | | ?????????????????????????? ?????? #????????####### | | ?????????????????????????? ???????#????????#####=# | | ?????????????????????????? ????????????????# =% | | ?????????????????????????? ????????????????# /=* | | ???????????????????????????????????????????# ! | | ???????????????????????????????????????????# % | | ???????????????????????????????????????????# % | | ???????????????????????????????????????????# | | ???????????????????????????????????????????####### | | ?????????????????????????????????????????????????? | | ?????????????????????????????????????????????????? | | ?????????????????????????????????????????????????? | | ?????????????????????????????????????????????????? | +----------------------------------------------------+ Best States ------------- Heat Dissipation 39 Energy Generation 14 Energy Capacity 265 Matter Stores 300 Matter Capacity 300 Sight Range 16 Terrain Scan Density 10 Armor Coverage 300 Utility Shielding 33 Evasion (%) 50 Recoil Reduction 2 Offensive Hacking 10 Item Schematics ----------------- None Robot Schematics ------------------ None Fabricated ------------ Nothing Alien Tech Used ----------------- None Achievements -------------- None Challenges ------------ None Game ------ Seed LauncherShadeMediator Manual? 0 Play Time 00:17:14 Cumulative 80.3 hours Start 2024.10.21 @ 08:08:22 End 2024.10.21 @ 08:26:32 Sessions 1 Manual Loads 0 Difficulty Rogue Special Mode None Game No. 98 Rogue 98 Adventurer 0 Explorer 0 Win Type - Total 0 Types 0/0/0/0/0/0/0/0/0 Lore% 54 Gallery% 45 Achievement% 37 Wizard Run 0 Options --------- Layout 1 ASCII 0 Keyboard 1 Movement Numpad Keybinds 0 Fullscreen 1 Font 24/Smallcaps Map View 50x35 Zoom Use 0% Tactical HUD 1 Map Filters NONE Filters NONE Steam 1 RUN: 665e7f8c-be26-44f8-8fc8-e7ba500ccea7